{"text_format":"1","workbook":"xlsx","n_sheets":3,"sheets":["Instructions","Internal Recharge Form","Data"],"not_rendered":{"charts":0,"images":3,"macros":1,"external_links":0,"defined_names":1,"comments":0,"pivot_tables":0},"unopened":[],"bounds":{"document_bytes":16777216,"sheet_cells":100000,"rows_first":2000,"rows_last":500,"rows_between":2000,"halvings":0,"cell_chars":16384,"cell_head_chars":4096},"cells_cut":0,"cells_raw":0,"read":"whole","date_system":"1900"}

{"sheet":"Instructions","index":0,"n_rows":0,"n_cols":0,"rows_kept":0,"cut":false,"hidden":false,"merged":[]}

{"sheet":"Internal Recharge Form","index":1,"n_rows":30,"n_cols":39,"rows_kept":30,"cut":false,"hidden":false,"merged":[[26,2,26,5],[10,2,10,4],[13,11,13,17],[10,5,10,9],[22,5,22,6],[23,5,23,6],[24,5,24,6],[15,13,15,14],[16,13,16,14],[17,13,17,14],[18,13,18,14],[19,13,19,14],[23,13,23,14],[24,13,24,14],[20,15,20,16],[21,15,21,16],[27,4,27,5],[27,2,27,3],[28,2,28,3],[29,2,29,3],[11,5,11,9],[28,4,28,5],[29,4,29,5],[11,2,11,4],[13,3,13,9],[15,5,15,6],[16,5,16,6],[17,5,17,6],[18,5,18,6],[19,5,19,6],[20,5,20,6],[21,5,21,6],[6,2,6,10],[4,2,4,17],[7,2,7,4],[8,2,8,4],[9,2,9,4],[7,11,7,12],[9,5,9,9],[8,5,8,9],[7,5,7,9],[18,15,18,16],[19,15,19,16],[22,15,22,16],[14,13,14,14],[14,5,14,6],[15,15,15,16],[16,15,16,16],[17,15,17,16],[20,13,20,14],[21,13,21,14],[22,13,22,14],[19,11,19,12],[20,11,20,12],[21,11,21,12],[22,11,22,12],[21,3,21,4],[20,3,20,4],[23,15,23,16],[24,15,24,16],[14,7,14,8],[14,15,14,16],[15,7,15,8],[16,7,16,8],[17,7,17,8],[18,7,18,8],[19,7,19,8],[20,7,20,8],[21,7,21,8],[22,7,22,8],[23,7,23,8],[24,7,24,8],[23,11,23,12],[24,11,24,12],[14,11,14,12],[14,3,14,4],[15,11,15,12],[16,11,16,12],[17,11,17,12],[18,11,18,12],[19,3,19,4],[18,3,18,4],[17,3,17,4],[16,3,16,4],[15,3,15,4],[24,3,24,4],[23,3,23,4],[22,3,22,4]]}
[null,null,null,null,null,null,null,null,null,null,null,null,null,null,null,null,null,null,null,null,null,null,null,null,null,null,null,null,null,null,null,null,null,null,null,null,null,null,"Y"]
[null,null,null,null,null,null,null,null,null,null,null,null,null,null,null,null,null,null,null,null,null,null,null,null,null,null,null,null,null,null,null,null,null,null,null,null,null,null,"N"]
[null,null,null,"Ebor Internal Recharges Form",null,null,null,null,null,null,null,null,null,null,null,null,null,"Password=\nPete"]
[]
[null,null,"This form is to be used to transfer income or expenditure from one school to another school, within the Ebor Academy Trust."]
[]
[null,null,"Please enter the details of the person completing this form, below:"]
[null,null,"Name",null,null,null,null,null,null,null,null,"Enter information into green cells"]
[null,null,"Job Title"]
[null,null,"School Name"]
[null,null,"Today's Date"]
[null,null,"Reason"]
[]
[null,null,null,"Your School",null,null,null,null,null,null,null,"School (s) to Charge"]
[null,null,"Item","School\nName",null,"Nominal",null,"Account",null,"Net\nValue","Description\n(max 30 characters)","School\nName",null,"Nominal",null,"Account",null,"Net\nValue"]
[null,null,1,null,null,null,null,null,null,0,null,null,null,null,null,null,null,0]
[null,null,2,null,null,null,null,null,null,0,null,null,null,null,null,null,null,0]
[null,null,3,null,null,null,null,null,null,0,null,null,null,null,null,null,null,0]
[null,null,4,null,null,null,null,null,null,0,null,null,null,null,null,null,null,0]
[null,null,5,null,null,null,null,null,null,0,null,null,null,null,null,null,null,0]
[null,null,6,null,null,null,null,null,null,0,null,null,null,null,null,null,null,0]
[null,null,7,null,null,null,null,null,null,0,null,null,null,null,null,null,null,0]
[null,null,8,null,null,null,null,null,null,0,null,null,null,null,null,null,null,0]
[null,null,9,null,null,null,null,null,null,0,null,null,null,null,null,null,null,0]
[null,null,10,null,null,null,null,null,null,0,null,null,null,null,null,null,null,0]
[null,null,null,null,null,null,null,null,null,{"$f":"SUM(J16:J25)","v":0},null,null,null,null,null,null,null,{"$f":"SUM(R16:R25)","v":0}]
[null,null,"Finance Use Only",null,null,null,null,null,null,null,{"$f":"IF(K28=\"\",\"\",\"*WARNING*\")","v":""}]
[null,null,"Reference Number",null,null,null,null,null,null,{"$f":"IF(K28=\"\",\"\",\"*WARNING*\")","v":""},{"$f":"IF(R28<>0,\"Does Not Balance to Nil\",\"\")","v":""},{"$f":"IF(K28=\"\",\"\",\"*WARNING*\")","v":""},null,null,null,null,null,{"$f":"SUM(J26-R26)","v":0}]
[null,null,"Name",null,null,null,null,null,null,null,{"$f":"IF(K28=\"\",\"\",\"*WARNING*\")","v":""}]
[null,null,"Date"]

{"sheet":"Data","index":2,"n_rows":747,"n_cols":12,"rows_kept":747,"cut":false,"hidden":true,"merged":[[0,3,0,5]]}
["Location Codes",null,null,"Period",null,null,null,"New Nominal","Nominal Title",null,"New Account","Description"]
[null,null,null,"Fin. Period","Calendar Mth"]
["BBS - Brotherton and Byram Primary Academy","Brotherton and Byram Primary Academy",null,9,"01","September",null,"1000 - GAG Funding Pupil Lead","GAG Funding Pupil Lead",null,"ADM001 - Administration","Administration"]
["EBO - Ebor Academy Trust","Ebor Academy Trust",null,10,"02","October",null,"1001 - Educational Services Grant","Educational Services Grant",null,"ART001 - Art","Art"]
["FLY - Ebor Academy Filey","Ebor Academy Filey",null,11,"03","November",null,"1002 - High Needs Funding","High Needs Funding",null,"ASC001 - After School Club","After School Club"]
["HRS - Haxby Road Primary Academy","Haxby Road Primary Academy",null,12,"04","December",null,"1004 - Infant Class Size Funding","Infant Class Size Funding",null,"BEH001 - Behaviour Support","Behaviour Support"]
["RWS - Robert Wilkinson Primary Academy","Robert Wilkinson Primary Academy",null,1,"05","January",null,"1005 - Free School Meals","Free School Meals",null,"BRE001 - Breakfast Club","Breakfast Club"]
["SHS - Staynor Hall Community Primary Academy","Staynor Hall Community Primary Academy",null,2,"06","February",null,"1006 - RPA Contribution","RPA Contribution",null,"BUS001 - Business Studies","Business Studies"]
["CAM - Camblesforth Community Primary Academy","Camblesforth Community Primary Academy",null,3,"07","March",null,"1007 - Minimum Funding Guarantee","Minimum Funding Guarantee",null,"CAP001 - Capital","Capital"]
["SIG - Sigglesthorne CofE Primary Academy","Sigglesthorne CofE Primary Academy",null,4,"08","April",null,"1008 - Lump Sum Funding","Lump Sum Funding",null,"CAT001 - Catering","Catering"]
["FIS - Filey Church of Englend Infants and Nursery Academy","Filey Church of Englend Infants and Nursery Academy",null,5,"09","May",null,"1051 - PE Grant","PE Grant",null,"COO001 - Cook School","Cook School"]
["PGS - Park Grove Primary Academy","Park Grove Primary Academy",null,6,"10","June",null,"1052 - LACSEG","LACSEG",null,"CPD001 - Staff Development","Staff Development"]
[null,null,null,7,"11","July",null,"1053 - Insurance","Insurance",null,"DAT001 - Design and Technology","Design and Technology"]
[null,null,null,8,"12","August",null,"1054 - Teacher Threshold","Teacher Threshold",null,"DRA001 - Drama","Drama"]
[null,null,null,null,null,null,null,"1081 - Pupil Premium","Pupil Premium",null,"DUK001 - Duke of Edinburgh Award Scheme","Duke of Edinburgh Award Scheme"]
[null,null,null,"Date","Fin. Period","Calendar Mth",null,"1082 - Business Rates","Business Rates",null,"EMS001 - Enhanced Mainstream School","Enhanced Mainstream School"]
[null,null,null,"2015-09-01",{"$f":"VLOOKUP(F17,$D$3:$E$14,2,FALSE)","v":"01"},{"$f":"MONTH(D17)","v":9},null,"1083 - Start Up Grant (A)","Start Up Grant (A)",null,"ENG001 - English","English"]
[null,null,null,"2015-09-02","01",9,null,"1084 - Start Up Grant (B)","Start Up Grant (B)",null,"ERP001 - ERP","ERP"]
[null,null,null,"2015-09-03","01",9,null,"1095 - SEN","SEN",null,"EYR001 - Early Years","Early Years"]
[null,null,null,"2015-09-04","01",9,null,"1096 - SEN Funding (Above 15hrs)","SEN Funding (Above 15hrs)",null,"FOT001 - Food Technology","Food Technology"]
[null,null,null,"2015-09-05","01",9,null,"1100 - Donations and / or Voluntary Funds","Donations and / or Voluntary Funds",null,"GEO001 - Geography","Geography"]
[null,null,null,"2015-09-06","01",9,null,"1101 - Breakfast Club","Breakfast Club",null,"HIS001 - History","History"]
[null,null,null,"2015-09-07","01",9,null,"1102 - After School Club","After School Club",null,"HUM001 - Humanities","Humanities"]
[null,null,null,"2015-09-08","01",9,null,"1104 - Nursery / Preschool","Nursery / Preschool",null,"HSC001 - Health & Social Care","Health & Social Care"]
[null,null,null,"2015-09-09","01",9,null,"1105 - Lettings and Room Hire","Lettings and Room Hire",null,"ICT001 - IT","IT"]
[null,null,null,"2015-09-10","01",9,null,"1106 - Transport Income","Transport Income",null,"KS1001 - KS1","KS1"]
[null,null,null,"2015-09-11","01",9,null,"1108 - Sales of Other Goods and Services","Sales of Other Goods and Services",null,"KS2001 - Lower KS2","Lower KS2"]
[null,null,null,"2015-09-12","01",9,null,"1109 - Music Services","Music Services",null,"KS2002 - Upper KS2","Upper KS2"]
[null,null,null,"2015-09-13","01",9,null,"1112 - Catering","Catering",null,"LIB001 - Library","Library"]
[null,null,null,"2015-09-14","01",9,null,"1113 - Forest Schools","Forest Schools",null,"LIT001 - Literacy","Literacy"]
[null,null,null,"2015-09-15","01",9,null,"1114 - Trip Income","Trip Income",null,"MAT001 - Mathematics","Mathematics"]
[null,null,null,"2015-09-16","01",9,null,"1115 - Staff Services - Consultancy","Staff Services - Consultancy",null,"MFL001 - Modern Foreign Languages","Modern Foreign Languages"]
[null,null,null,"2015-09-17","01",9,null,"1116 - Training Course Fees","Training Course Fees",null,"MSC001 - Miscellaneous","Miscellaneous"]
[null,null,null,"2015-09-18","01",9,null,"1117 - Swimming Pool","Swimming Pool",null,"MUS001 - Music","Music"]
[null,null,null,"2015-09-19","01",9,null,"1118 - Miscellaneous","Miscellaneous",null,"NQT001 - Newly Qualified Teachers","Newly Qualified Teachers"]
[null,null,null,"2015-09-20","01",9,null,"1119 - Summer School","Summer School",null,"NLC001 - Yr7 Numeracy and Literacy Catchup","Yr7 Numeracy and Literacy Catchup"]
["Credit Card Numbers",null,null,"2015-09-21","01",9,null,"1126 - Yr7 Numeracy & Literacy Catchup","Yr7 Numeracy & Literacy Catchup",null,"NUM001 - Numeracy","Numeracy"]
["BBS","4273426200590130",null,"2015-09-22","01",9,null,"1127 - Department / Subject Income","Department / Subject Income",null,"NUR001 - Nursery / Preschool","Nursery / Preschool"]
["EBO","4273425200141118",null,"2015-09-23","01",9,null,"1140 - Uniforms Income","Uniforms Income",null,"PAS001 - Pastoral","Pastoral"]
["FLY","4715320621445741",null,"2015-09-24","01",9,null,"1150 - Sponsor Income","Sponsor Income",null,"PHY001 - Physical Education","Physical Education"]
["HRS","4273425200139492",null,"2015-09-25","01",9,null,"1160 - School Direct","School Direct",null,"PRE001 - Premises","Premises"]
["RWS","4273425200139450",null,"2015-09-26","01",9,null,"1170 - School to School Support","School to School Support",null,"PPR001 - Pupil Premium","Pupil Premium"]
[null,null,null,"2015-09-27","01",9,null,"1200 - Bank Interest","Bank Interest",null,"REG001 - Religious Education","Religious Education"]
["VAT Receipt?",null,null,"2015-09-28","01",9,null,"2000 - Teachers - Normal Pay","Teachers - Normal Pay",null,"SCH001 - Main School","Main School"]
[null,null,null,"2015-09-29","01",9,null,"2001 - Teachers - Supply Teacher Pay","Teachers - Supply Teacher Pay",null,"SCI001 - Science","Science"]
["Yes",null,null,"2015-09-30","01",9,null,"2002 - Teachers - Holiday Pay","Teachers - Holiday Pay",null,"SCM001 - School Meals","School Meals"]
["No",null,null,"2015-10-01","02",10,null,"2003 - Teachers - ET Teachers Pension ER","Teachers - ET Teachers Pension ER",null,"SDW001 - Schools Direct","Schools Direct"]
[null,null,null,"2015-10-02","02",10,null,"2004 - Teachers - Childcare Vouchers","Teachers - Childcare Vouchers",null,"SEN001 - SEN","SEN"]
[null,null,null,"2015-10-03","02",10,null,"2005 - Teachers - Employers NI","Teachers - Employers NI",null,"SFD001 - School Fund (Legacy)","School Fund (Legacy)"]
[null,null,null,"2015-10-04","02",10,null,"2006 - Teachers - Living Wage","Teachers - Living Wage",null,"SLT001 - Senior Leadership Team","Senior Leadership Team"]
[null,null,null,"2015-10-05","02",10,null,"2007 - Teachers - Monetary diff","Teachers - Monetary diff",null,"SUM001 - Summer School","Summer School"]
[null,null,null,"2015-10-06","02",10,null,"2008 - Teachers - Additional Hours","Teachers - Additional Hours",null,"STS001 - School To School Support","School To School Support"]
[null,null,null,"2015-10-07","02",10,null,"2009 - Teachers - Casual Holiday Pay","Teachers - Casual Holiday Pay",null,"TNY001 - Tiny Steps","Tiny Steps"]
[null,null,null,"2015-10-08","02",10,null,"2010 - Teachers - LGPS Main Scheme","Teachers - LGPS Main Scheme",null,"WRL001 - Work Related Learning","Work Related Learning"]
[null,null,null,"2015-10-09","02",10,null,"2011 - Teachers - Cash Safeguard","Teachers - Cash Safeguard",null,"TRP001 - School Trips","School Trips"]
[null,null,null,"2015-10-10","02",10,null,"2012 - Teachers - Pay Protection","Teachers - Pay Protection"]
[null,null,null,"2015-10-11","02",10,null,"2013 - Teachers - Special Needs Resp","Teachers - Special Needs Resp"]
[null,null,null,"2015-10-12","02",10,null,"2014 - Teachers - TLR2 Payment","Teachers - TLR2 Payment"]
[null,null,null,"2015-10-13","02",10,null,"2015 - Teachers - Overtime","Teachers - Overtime"]
[null,null,null,"2015-10-14","02",10,null,"2048 - Teachers - Occ Sick Half","Teachers - Occ Sick Half"]
[null,null,null,"2015-10-15","02",10,null,"2049 - Teachers - Statutory Charge","Teachers - Statutory Charge"]
[null,null,null,"2015-10-16","02",10,null,"2051 - Teachers - Statutory Pension","Teachers - Statutory Pension"]
[null,null,null,"2015-10-17","02",10,null,"2052 - Teachers - Statutory Recovery","Teachers - Statutory Recovery"]
[null,null,null,"2015-10-18","02",10,null,"2100 - Technicians - Normal Pay","Technicians - Normal Pay"]
[null,null,null,"2015-10-19","02",10,null,"2101 - Technicians - Supply Teacher Pay","Technicians - Supply Teacher Pay"]
[null,null,null,"2015-10-20","02",10,null,"2102 - Technicians - Holiday Pay","Technicians - Holiday Pay"]
[null,null,null,"2015-10-21","02",10,null,"2104 - Technicians - Childcare Vouchers","Technicians - Childcare Vouchers"]
[null,null,null,"2015-10-22","02",10,null,"2105 - Technicians - Employers NI","Technicians - Employers NI"]
[null,null,null,"2015-10-23","02",10,null,"2106 - Technicians - Living Wage","Technicians - Living Wage"]
[null,null,null,"2015-10-24","02",10,null,"2107 - Technicians - Monetary diff","Technicians - Monetary diff"]
[null,null,null,"2015-10-25","02",10,null,"2108 - Technicians - Additional Hours","Technicians - Additional Hours"]
[null,null,null,"2015-10-26","02",10,null,"2109 - Technicians - Casual Holiday Pay","Technicians - Casual Holiday Pay"]
[null,null,null,"2015-10-27","02",10,null,"2110 - Technicians - LGPS Main Scheme","Technicians - LGPS Main Scheme"]
[null,null,null,"2015-10-28","02",10,null,"2111 - Technicians - Cash Safeguard","Technicians - Cash Safeguard"]
[null,null,null,"2015-10-29","02",10,null,"2112 - Technicians - Pay Protection","Technicians - Pay Protection"]
[null,null,null,"2015-10-30","02",10,null,"2113 - Technicians - Special Needs Resp","Technicians - Special Needs Resp"]
[null,null,null,"2015-10-31","02",10,null,"2115 - Technicians - Overtime","Technicians - Overtime"]
[null,null,null,"2015-11-01","03",11,null,"2148 - Technicians - Occ Sick Half","Technicians - Occ Sick Half"]
[null,null,null,"2015-11-02","03",11,null,"2149 - Technicians - Statutory Charge","Technicians - Statutory Charge"]
[null,null,null,"2015-11-03","03",11,null,"2151 - Technicians - Statutory Pension","Technicians - Statutory Pension"]
[null,null,null,"2015-11-04",{"$f":"VLOOKUP(F81,$D$3:$E$14,2,FALSE)","v":"03"},{"$f":"MONTH(D81)","v":11},null,"2152 - Technicians - Statutory Recovery","Technicians - Statutory Recovery"]
[null,null,null,"2015-11-05","03",11,null,"2200 - Teaching Assistants - Normal Pay","Teaching Assistants - Normal Pay"]
[null,null,null,"2015-11-06","03",11,null,"2201 - Teaching Assistants - Supply Teacher Pay","Teaching Assistants - Supply Teacher Pay"]
[null,null,null,"2015-11-07","03",11,null,"2202 - Teaching Assistants - Holiday Pay","Teaching Assistants - Holiday Pay"]
[null,null,null,"2015-11-08","03",11,null,"2203 - Teaching Assistants - ET Teachers Pensio","Teaching Assistants - ET Teachers Pensio"]
[null,null,null,"2015-11-09","03",11,null,"2204 - Teaching Assistants - Childcare Vouchers","Teaching Assistants - Childcare Vouchers"]
[null,null,null,"2015-11-10","03",11,null,"2205 - Teaching Assistants - Employers NI","Teaching Assistants - Employers NI"]
[null,null,null,"2015-11-11","03",11,null,"2206 - Teaching Assistants - Living Wage","Teaching Assistants - Living Wage"]
[null,null,null,"2015-11-12","03",11,null,"2207 - Teaching Assistants - Monetary diff","Teaching Assistants - Monetary diff"]
[null,null,null,"2015-11-13","03",11,null,"2208 - Teaching Assistants - Additional Hours","Teaching Assistants - Additional Hours"]
[null,null,null,"2015-11-14","03",11,null,"2209 - Teaching Assistants - Casual Holiday Pay","Teaching Assistants - Casual Holiday Pay"]
[null,null,null,"2015-11-15","03",11,null,"2210 - Teaching Assistants - LGPS Main Scheme","Teaching Assistants - LGPS Main Scheme"]
[null,null,null,"2015-11-16","03",11,null,"2211 - Teaching Assistants - Cash Safeguard","Teaching Assistants - Cash Safeguard"]
[null,null,null,"2015-11-17","03",11,null,"2212 - Teaching Assistants - Pay Protection","Teaching Assistants - Pay Protection"]
[null,null,null,"2015-11-18","03",11,null,"2213 - Teaching Assistants - Special Needs Resp","Teaching Assistants - Special Needs Resp"]
[null,null,null,"2015-11-19","03",11,null,"2215 - Teaching Assistants - Overtime","Teaching Assistants - Overtime"]
[null,null,null,"2015-11-20","03",11,null,"2248 - Teaching Assistants - Occ Sick Half","Teaching Assistants - Occ Sick Half"]
[null,null,null,"2015-11-21","03",11,null,"2249 - Teaching Assistants - Statutory Charge","Teaching Assistants - Statutory Charge"]
[null,null,null,"2015-11-22","03",11,null,"2251 - Teaching Assistants - Statutory Pension","Teaching Assistants - Statutory Pension"]
[null,null,null,"2015-11-23","03",11,null,"2252 - Teaching Assistants - Statutory Recovery","Teaching Assistants - Statutory Recovery"]
[null,null,null,"2015-11-24","03",11,null,"2300 - Premises Staff - Normal Pay","Premises Staff - Normal Pay"]
[null,null,null,"2015-11-25","03",11,null,"2301 - Premises Staff - Supply Teacher Pay","Premises Staff - Supply Teacher Pay"]
[null,null,null,"2015-11-26","03",11,null,"2302 - Premises Staff - Holiday Pay","Premises Staff - Holiday Pay"]
[null,null,null,"2015-11-27","03",11,null,"2304 - Premises Staff - Childcare Vouchers","Premises Staff - Childcare Vouchers"]
[null,null,null,"2015-11-28","03",11,null,"2305 - Premises Staff - Employers NI","Premises Staff - Employers NI"]
[null,null,null,"2015-11-29","03",11,null,"2306 - Premises Staff - Living Wage","Premises Staff - Living Wage"]
[null,null,null,"2015-11-30","03",11,null,"2307 - Premises Staff - Monetary diff","Premises Staff - Monetary diff"]
[null,null,null,"2015-12-01","04",12,null,"2308 - Premises Staff - Additional Hours","Premises Staff - Additional Hours"]
[null,null,null,"2015-12-02","04",12,null,"2309 - Premises Staff - Casual Holiday Pay","Premises Staff - Casual Holiday Pay"]
[null,null,null,"2015-12-03","04",12,null,"2310 - Premises Staff - LGPS Main Scheme","Premises Staff - LGPS Main Scheme"]
[null,null,null,"2015-12-04","04",12,null,"2311 - Premises Staff - Cash Safeguard","Premises Staff - Cash Safeguard"]
[null,null,null,"2015-12-05","04",12,null,"2312 - Premises Staff - Pay Protection","Premises Staff - Pay Protection"]
[null,null,null,"2015-12-06","04",12,null,"2313 - Premises Staff - Special Needs Resp","Premises Staff - Special Needs Resp"]
[null,null,null,"2015-12-07","04",12,null,"2315 - Premises Staff - Overtime","Premises Staff - Overtime"]
[null,null,null,"2015-12-08","04",12,null,"2348 - Premises Staff - Occ Sick Half","Premises Staff - Occ Sick Half"]
[null,null,null,"2015-12-09","04",12,null,"2349 - Premises Staff - Statutory Charge","Premises Staff - Statutory Charge"]
[null,null,null,"2015-12-10","04",12,null,"2351 - Premises Staff - Statutory Pension","Premises Staff - Statutory Pension"]
[null,null,null,"2015-12-11","04",12,null,"2352 - Premises Staff - Statutory Recovery","Premises Staff - Statutory Recovery"]
[null,null,null,"2015-12-12","04",12,null,"2400 - Midday Supervisor - Normal Pay","Midday Supervisor - Normal Pay"]
[null,null,null,"2015-12-13","04",12,null,"2401 - Midday Supervisor - Supply Teacher Pay","Midday Supervisor - Supply Teacher Pay"]
[null,null,null,"2015-12-14","04",12,null,"2402 - Midday Supervisor - Holiday Pay","Midday Supervisor - Holiday Pay"]
[null,null,null,"2015-12-15","04",12,null,"2404 - Midday Supervisor - Childcare Vouchers","Midday Supervisor - Childcare Vouchers"]
[null,null,null,"2015-12-16","04",12,null,"2405 - Midday Supervisor - Employers NI","Midday Supervisor - Employers NI"]
[null,null,null,"2015-12-17","04",12,null,"2406 - Midday Supervisor - Living Wage","Midday Supervisor - Living Wage"]
[null,null,null,"2015-12-18","04",12,null,"2407 - Midday Supervisor - Monetary diff","Midday Supervisor - Monetary diff"]
[null,null,null,"2015-12-19","04",12,null,"2408 - Midday Supervisor - Additional Hours","Midday Supervisor - Additional Hours"]
[null,null,null,"2015-12-20","04",12,null,"2409 - Midday Supervisor - Casual Holiday Pay","Midday Supervisor - Casual Holiday Pay"]
[null,null,null,"2015-12-21","04",12,null,"2410 - Midday Supervisor - LGPS Main Scheme","Midday Supervisor - LGPS Main Scheme"]
[null,null,null,"2015-12-22","04",12,null,"2411 - Midday Supervisor - Cash Safeguard","Midday Supervisor - Cash Safeguard"]
[null,null,null,"2015-12-23","04",12,null,"2412 - Midday Supervisor - Pay Protection","Midday Supervisor - Pay Protection"]
[null,null,null,"2015-12-24","04",12,null,"2413 - Midday Supervisor - Special Needs Resp","Midday Supervisor - Special Needs Resp"]
[null,null,null,"2015-12-25","04",12,null,"2415 - Midday Supervisor - Overtime","Midday Supervisor - Overtime"]
[null,null,null,"2015-12-26","04",12,null,"2416 - Midday Supervisor - Occ Sick Half","Midday Supervisor - Occ Sick Half"]
[null,null,null,"2015-12-27","04",12,null,"2449 - Midday Supervisor - Statutory Charge","Midday Supervisor - Statutory Charge"]
[null,null,null,"2015-12-28","04",12,null,"2450 - Midday Supervisor - Statutory Pension","Midday Supervisor - Statutory Pension"]
[null,null,null,"2015-12-29","04",12,null,"2451 - Midday Supervisor - Statutory Recovery","Midday Supervisor - Statutory Recovery"]
[null,null,null,"2015-12-30","04",12,null,"2500 - Other Staff - Normal Pay","Other Staff - Normal Pay"]
[null,null,null,"2015-12-31","04",12,null,"2501 - Other Staff - Supply Teacher Pay","Other Staff - Supply Teacher Pay"]
[null,null,null,"2016-01-01","05",1,null,"2502 - Other Staff - Holiday Pay on Leaving","Other Staff - Holiday Pay on Leaving"]
[null,null,null,"2016-01-02","05",1,null,"2504 - Other Staff - Childcare Vouchers","Other Staff - Childcare Vouchers"]
[null,null,null,"2016-01-03","05",1,null,"2505 - Other Staff - Employers NI","Other Staff - Employers NI"]
[null,null,null,"2016-01-04","05",1,null,"2506 - Other Staff - Living Wage","Other Staff - Living Wage"]
[null,null,null,"2016-01-05","05",1,null,"2507 - Other Staff - Monetary diff","Other Staff - Monetary diff"]
[null,null,null,"2016-01-06","05",1,null,"2508 - Other Staff - Additional Hours","Other Staff - Additional Hours"]
[null,null,null,"2016-01-07",{"$f":"VLOOKUP(F145,$D$3:$E$14,2,FALSE)","v":"05"},{"$f":"MONTH(D145)","v":1},null,"2509 - Other Staff - Casual Holiday Pay","Other Staff - Casual Holiday Pay"]
[null,null,null,"2016-01-08","05",1,null,"2510 - Other Staff - LGPS Main Scheme","Other Staff - LGPS Main Scheme"]
[null,null,null,"2016-01-09","05",1,null,"2511 - Other Staff - Cash Safeguard","Other Staff - Cash Safeguard"]
[null,null,null,"2016-01-10","05",1,null,"2512 - Other Staff - Pay Protection","Other Staff - Pay Protection"]
[null,null,null,"2016-01-11","05",1,null,"2513 - Other Staff - Special Needs Resp","Other Staff - Special Needs Resp"]
[null,null,null,"2016-01-12","05",1,null,"2515 - Other Staff - Overtime","Other Staff - Overtime"]
[null,null,null,"2016-01-13","05",1,null,"2516 - Other Staff - Occ Sick Half","Other Staff - Occ Sick Half"]
[null,null,null,"2016-01-14","05",1,null,"2549 - Other Staff - Statutory Charge","Other Staff - Statutory Charge"]
[null,null,null,"2016-01-15","05",1,null,"2550 - Other Staff - Statutory Pension","Other Staff - Statutory Pension"]
[null,null,null,"2016-01-16","05",1,null,"2551 - Other Staff - Statutory Recovery","Other Staff - Statutory Recovery"]
[null,null,null,"2016-01-17","05",1,null,"2600 - Finance and Admin - Normal Pay","Finance and Admin - Normal Pay"]
[null,null,null,"2016-01-18","05",1,null,"2601 - Finance and Admin - Supply Teacher Pay","Finance and Admin - Supply Teacher Pay"]
[null,null,null,"2016-01-19","05",1,null,"2602 - Finance and Admin - Holiday Pay","Finance and Admin - Holiday Pay"]
[null,null,null,"2016-01-20","05",1,null,"2604 - Finance and Admin - Childcare Vouchers","Finance and Admin - Childcare Vouchers"]
[null,null,null,"2016-01-21","05",1,null,"2605 - Finance and Admin - Employers NI","Finance and Admin - Employers NI"]
[null,null,null,"2016-01-22","05",1,null,"2606 - Finance and Admin - Living Wage","Finance and Admin - Living Wage"]
[null,null,null,"2016-01-23","05",1,null,"2607 - Finance and Admin - Monetary diff","Finance and Admin - Monetary diff"]
[null,null,null,"2016-01-24","05",1,null,"2608 - Finance and Admin - Additional Hours","Finance and Admin - Additional Hours"]
[null,null,null,"2016-01-25","05",1,null,"2609 - Finance and Admin - Casual Holiday Pay","Finance and Admin - Casual Holiday Pay"]
[null,null,null,"2016-01-26","05",1,null,"2610 - Finance and Admin - LGPS Main Scheme","Finance and Admin - LGPS Main Scheme"]
[null,null,null,"2016-01-27","05",1,null,"2611 - Finance and Admin - Cash Safeguard","Finance and Admin - Cash Safeguard"]
[null,null,null,"2016-01-28","05",1,null,"2612 - Finance and Admin - Pay Protection","Finance and Admin - Pay Protection"]
[null,null,null,"2016-01-29","05",1,null,"2613 - Finance and Admin - Special Needs Resp","Finance and Admin - Special Needs Resp"]
[null,null,null,"2016-01-30","05",1,null,"2615 - Finance and Admin - Overtime","Finance and Admin - Overtime"]
[null,null,null,"2016-01-31","05",1,null,"2648 - Finance and Admin - Occ Sick Half","Finance and Admin - Occ Sick Half"]
[null,null,null,"2016-02-01","06",2,null,"2649 - Finance and Admin - Statutory Charge","Finance and Admin - Statutory Charge"]
[null,null,null,"2016-02-02","06",2,null,"2651 - Finance and Admin - Statutory Pension","Finance and Admin - Statutory Pension"]
[null,null,null,"2016-02-03","06",2,null,"2652 - Finance and Admin - Statutory Recovery","Finance and Admin - Statutory Recovery"]
[null,null,null,"2016-02-04","06",2,null,"2900 - Agency Supply Cover","Agency Supply Cover"]
[null,null,null,"2016-02-05","06",2,null,"3000 - Repairs & Maintenance (Buildings)","Repairs & Maintenance (Buildings)"]
[null,null,null,"2016-02-06","06",2,null,"3005 - Equipment Repairs and Maintenance","Equipment Repairs and Maintenance"]
[null,null,null,"2016-02-07","06",2,null,"3010 - Grounds Maintenance","Grounds Maintenance"]
[null,null,null,"2016-02-08","06",2,null,"3020 - PFI Charges","PFI Charges"]
[null,null,null,"2016-02-09","06",2,null,"3041 - PAT Testing","PAT Testing"]
[null,null,null,"2016-02-10","06",2,null,"3042 - Uniform & Protective Clothing","Uniform & Protective Clothing"]
[null,null,null,"2016-02-11","06",2,null,"3100 - Caretaker Supplies","Caretaker Supplies"]
[null,null,null,"2016-02-12","06",2,null,"3101 - Hygiene Services","Hygiene Services"]
[null,null,null,"2016-02-13","06",2,null,"3102 - Cleaning Equipment","Cleaning Equipment"]
[null,null,null,"2016-02-14","06",2,null,"3103 - Cleaning Materials","Cleaning Materials"]
[null,null,null,"2016-02-15","06",2,null,"3104 - Window Cleaning","Window Cleaning"]
[null,null,null,"2016-02-16","06",2,null,"3105 - Cleaning Contract","Cleaning Contract"]
[null,null,null,"2016-02-17","06",2,null,"3200 - Water","Water"]
[null,null,null,"2016-02-18","06",2,null,"3201 - Sewerage","Sewerage"]
[null,null,null,"2016-02-19","06",2,null,"3205 - Gas","Gas"]
[null,null,null,"2016-02-20","06",2,null,"3210 - Electricity","Electricity"]
[null,null,null,"2016-02-21","06",2,null,"3215 - Oil","Oil"]
[null,null,null,"2016-02-22","06",2,null,"3300 - Fire Alarm and Extinguishers","Fire Alarm and Extinguishers"]
[null,null,null,"2016-02-23","06",2,null,"3301 - Pest Control","Pest Control"]
[null,null,null,"2016-02-24","06",2,null,"3302 - Refuse Collection","Refuse Collection"]
[null,null,null,"2016-02-25","06",2,null,"3400 - Medical Requisites","Medical Requisites"]
[null,null,null,"2016-02-26","06",2,null,"3401 - Business Rates","Business Rates"]
[null,null,null,"2016-02-27","06",2,null,"3402 - Rent","Rent"]
[null,null,null,"2016-02-28","06",2,null,"3403 - Insurance","Insurance"]
[null,null,null,"2016-02-29","06",2,null,"3500 - Security Alarm","Security Alarm"]
[null,null,null,"2016-03-01","07",3,null,"3600 - Security Patrol","Security Patrol"]
[null,null,null,"2016-03-02","07",3,null,"3601 - CCTV Monitoring","CCTV Monitoring"]
[null,null,null,"2016-03-03","07",3,null,"3602 - Security Services","Security Services"]
[null,null,null,"2016-03-04","07",3,null,"3603 - Health and Safety","Health and Safety"]
[null,null,null,"2016-03-05","07",3,null,"3604 - Swimming Pool","Swimming Pool"]
[null,null,null,"2016-03-06","07",3,null,"4005 - Books","Books"]
[null,null,null,"2016-03-07","07",3,null,"4010 - Equipment (Non IT)","Equipment (Non IT)"]
[null,null,null,"2016-03-08","07",3,null,"4025 - Photocopying","Photocopying"]
[null,null,null,"2016-03-09","07",3,null,"4030 - Capitation","Capitation"]
[null,null,null,"2016-03-10","07",3,null,"4045 - Furniture","Furniture"]
[null,null,null,"2016-03-11",{"$f":"VLOOKUP(F209,$D$3:$E$14,2,FALSE)","v":"07"},{"$f":"MONTH(D209)","v":3},null,"4050 - Student Rewards","Student Rewards"]
[null,null,null,"2016-03-12","07",3,null,"4051 - School Uniform","School Uniform"]
[null,null,null,"2016-03-13","07",3,null,"4125 - Minibus Costs","Minibus Costs"]
[null,null,null,"2016-03-14","07",3,null,"4126 - Vehicle Hire","Vehicle Hire"]
[null,null,null,"2016-03-15","07",3,null,"4127 - Taxis","Taxis"]
[null,null,null,"2016-03-16","07",3,null,"4135 - Professional Services - Educational","Professional Services - Educational"]
[null,null,null,"2016-03-17","07",3,null,"4150 - Examination Fees","Examination Fees"]
[null,null,null,"2016-03-18","07",3,null,"4170 - Work Experience","Work Experience"]
[null,null,null,"2016-03-19","07",3,null,"5010 - Catering Equipment","Catering Equipment"]
[null,null,null,"2016-03-20","07",3,null,"5011 - Catering Client Svc Monitor","Catering Client Svc Monitor"]
[null,null,null,"2016-03-21","07",3,null,"5012 - Catering Maintenance & Repairs","Catering Maintenance & Repairs"]
[null,null,null,"2016-03-22","07",3,null,"5013 - Catering","Catering"]
[null,null,null,"2016-03-23","07",3,null,"5014 - Hospitality","Hospitality"]
[null,null,null,"2016-03-24","07",3,null,"5015 - Catering Supplies","Catering Supplies"]
[null,null,null,"2016-03-25","07",3,null,"5016 - Catering Service Contact","Catering Service Contact"]
[null,null,null,"2016-03-26","07",3,null,"5050 - School Meals","School Meals"]
[null,null,null,"2016-03-27","07",3,null,"5100 - Fixed Line Communications","Fixed Line Communications"]
[null,null,null,"2016-03-28","07",3,null,"5105 - Mobile Communications","Mobile Communications"]
[null,null,null,"2016-03-29","07",3,null,"5111 - Subscriptions","Subscriptions"]
[null,null,null,"2016-03-30","07",3,null,"5112 - IT Hardware","IT Hardware"]
[null,null,null,"2016-03-31","07",3,null,"5113 - IT Software and Licences","IT Software and Licences"]
[null,null,null,"2016-04-01","08",4,null,"5114 - IT Consumables","IT Consumables"]
[null,null,null,"2016-04-02","08",4,null,"5116 - IT Operating Leases","IT Operating Leases"]
[null,null,null,"2016-04-03","08",4,null,"5117 - IT Service Agreements","IT Service Agreements"]
[null,null,null,"2016-04-04","08",4,null,"5118 - Broadband","Broadband"]
[null,null,null,"2016-04-05","08",4,null,"5140 - Professional Services - Non Educational","Professional Services - Non Educational"]
[null,null,null,"2016-04-06","08",4,null,"5155 - Bank Charges","Bank Charges"]
[null,null,null,"2016-04-07","08",4,null,"5205 - Postage","Postage"]
[null,null,null,"2016-04-08","08",4,null,"5206 - Stationery","Stationery"]
[null,null,null,"2016-04-09","08",4,null,"5207 - General Office Expenses","General Office Expenses"]
[null,null,null,"2016-04-10","08",4,null,"5208 - Photocopying","Photocopying"]
[null,null,null,"2016-04-11","08",4,null,"5209 - PS Financials","PS Financials"]
[null,null,null,"2016-04-12","08",4,null,"5315 - Staff Advertising","Staff Advertising"]
[null,null,null,"2016-04-13","08",4,null,"5316 - Interview Expenses","Interview Expenses"]
[null,null,null,"2016-04-14","08",4,null,"5317 - Long Service Awards","Long Service Awards"]
[null,null,null,"2016-04-15","08",4,null,"5318 - DBS Checks","DBS Checks"]
[null,null,null,"2016-04-16","08",4,null,"5415 - Governance Service","Governance Service"]
[null,null,null,"2016-04-17","08",4,null,"5416 - Governing Body Clerking Service","Governing Body Clerking Service"]
[null,null,null,"2016-04-18","08",4,null,"5417 - Human Resources","Human Resources"]
[null,null,null,"2016-04-19","08",4,null,"5418 - Legal Services","Legal Services"]
[null,null,null,"2016-04-20","08",4,null,"5419 - Management Information Service","Management Information Service"]
[null,null,null,"2016-04-21","08",4,null,"5421 - Conference Expenses","Conference Expenses"]
[null,null,null,"2016-04-22","08",4,null,"5422 - De-delegation : Access & FSM Services","De-delegation : Access & FSM Services"]
[null,null,null,"2016-04-23","08",4,null,"5423 - Staff Services - Consultancy","Staff Services - Consultancy"]
[null,null,null,"2016-04-24","08",4,null,"5424 - Marketing and Communication","Marketing and Communication"]
[null,null,null,"2016-04-25","08",4,null,"5425 - Payroll","Payroll"]
[null,null,null,"2016-04-26","08",4,null,"5426 - School Improvement & Skills","School Improvement & Skills"]
[null,null,null,"2016-04-27","08",4,null,"5427 - Services to Schools","Services to Schools"]
[null,null,null,"2016-04-28","08",4,null,"5500 - Top Slice For Ebor Centralised Services","Top Slice For Ebor Centralised Services"]
[null,null,null,"2016-04-29","08",4,null,"5700 - Training Course Fees","Training Course Fees"]
[null,null,null,"2016-04-30","08",4,null,"5701 - Training Travel","Training Travel"]
[null,null,null,"2016-05-01","09",5,null,"5702 - Courses / Instructors","Courses / Instructors"]
[null,null,null,"2016-05-02","09",5,null,"5900 - External Audit","External Audit"]
[null,null,null,"2016-05-03","09",5,null,"5901 - Internal Audit","Internal Audit"]
[null,null,null,"2016-05-04","09",5,null,"6100 - Staff Travel & Subsistence","Staff Travel & Subsistence"]
[null,null,null,"2016-05-05","09",5,null,"6101 - Staff Accommodation","Staff Accommodation"]
[null,null,null,"2016-05-06","09",5,null,"6500 - Trips Travel Costs","Trips Travel Costs"]
[null,null,null,"2016-05-07","09",5,null,"6510 - Trips Food and Drink","Trips Food and Drink"]
[null,null,null,"2016-05-08","09",5,null,"6520 - Trips Accommodation and / or Entrance","Trips Accommodation and / or Entrance"]
[null,null,null,"2016-05-09","09",5,null,"6530 - Trips Insurance","Trips Insurance"]
[null,null,null,"2016-05-10","09",5,null,"8100 - DfE Devolved Formula Capital Grant","DfE Devolved Formula Capital Grant"]
[null,null,null,"2016-05-11","09",5,null,"8200 - Land & Buildings Capital Acquisition","Land & Buildings Capital Acquisition"]
[null,null,null,"2016-05-12","09",5]
[null,null,null,"2016-05-13","09",5]
[null,null,null,"2016-05-14",{"$f":"VLOOKUP(F273,$D$3:$E$14,2,FALSE)","v":"09"},{"$f":"MONTH(D273)","v":5}]
[null,null,null,"2016-05-15","09",5]
[null,null,null,"2016-05-16","09",5]
[null,null,null,"2016-05-17","09",5]
[null,null,null,"2016-05-18","09",5]
[null,null,null,"2016-05-19","09",5]
[null,null,null,"2016-05-20","09",5]
[null,null,null,"2016-05-21","09",5]
[null,null,null,"2016-05-22","09",5]
[null,null,null,"2016-05-23","09",5]
[null,null,null,"2016-05-24","09",5]
[null,null,null,"2016-05-25","09",5]
[null,null,null,"2016-05-26","09",5]
[null,null,null,"2016-05-27","09",5]
[null,null,null,"2016-05-28","09",5]
[null,null,null,"2016-05-29","09",5]
[null,null,null,"2016-05-30","09",5]
[null,null,null,"2016-05-31","09",5]
[null,null,null,"2016-06-01","10",6]
[null,null,null,"2016-06-02","10",6]
[null,null,null,"2016-06-03","10",6]
[null,null,null,"2016-06-04","10",6]
[null,null,null,"2016-06-05","10",6]
[null,null,null,"2016-06-06","10",6]
[null,null,null,"2016-06-07","10",6]
[null,null,null,"2016-06-08","10",6]
[null,null,null,"2016-06-09","10",6]
[null,null,null,"2016-06-10","10",6]
[null,null,null,"2016-06-11","10",6]
[null,null,null,"2016-06-12","10",6]
[null,null,null,"2016-06-13","10",6]
[null,null,null,"2016-06-14","10",6]
[null,null,null,"2016-06-15","10",6]
[null,null,null,"2016-06-16","10",6]
[null,null,null,"2016-06-17","10",6]
[null,null,null,"2016-06-18","10",6]
[null,null,null,"2016-06-19","10",6]
[null,null,null,"2016-06-20","10",6]
[null,null,null,"2016-06-21","10",6]
[null,null,null,"2016-06-22","10",6]
[null,null,null,"2016-06-23","10",6]
[null,null,null,"2016-06-24","10",6]
[null,null,null,"2016-06-25","10",6]
[null,null,null,"2016-06-26","10",6]
[null,null,null,"2016-06-27","10",6]
[null,null,null,"2016-06-28","10",6]
[null,null,null,"2016-06-29","10",6]
[null,null,null,"2016-06-30","10",6]
[null,null,null,"2016-07-01","11",7]
[null,null,null,"2016-07-02","11",7]
[null,null,null,"2016-07-03","11",7]
[null,null,null,"2016-07-04","11",7]
[null,null,null,"2016-07-05","11",7]
[null,null,null,"2016-07-06","11",7]
[null,null,null,"2016-07-07","11",7]
[null,null,null,"2016-07-08","11",7]
[null,null,null,"2016-07-09","11",7]
[null,null,null,"2016-07-10","11",7]
[null,null,null,"2016-07-11","11",7]
[null,null,null,"2016-07-12","11",7]
[null,null,null,"2016-07-13","11",7]
[null,null,null,"2016-07-14","11",7]
[null,null,null,"2016-07-15","11",7]
[null,null,null,"2016-07-16","11",7]
[null,null,null,"2016-07-17",{"$f":"VLOOKUP(F337,$D$3:$E$14,2,FALSE)","v":"11"},{"$f":"MONTH(D337)","v":7}]
[null,null,null,"2016-07-18","11",7]
[null,null,null,"2016-07-19","11",7]
[null,null,null,"2016-07-20","11",7]
[null,null,null,"2016-07-21","11",7]
[null,null,null,"2016-07-22","11",7]
[null,null,null,"2016-07-23","11",7]
[null,null,null,"2016-07-24","11",7]
[null,null,null,"2016-07-25","11",7]
[null,null,null,"2016-07-26","11",7]
[null,null,null,"2016-07-27","11",7]
[null,null,null,"2016-07-28","11",7]
[null,null,null,"2016-07-29","11",7]
[null,null,null,"2016-07-30","11",7]
[null,null,null,"2016-07-31","11",7]
[null,null,null,"2016-08-01","12",8]
[null,null,null,"2016-08-02","12",8]
[null,null,null,"2016-08-03","12",8]
[null,null,null,"2016-08-04","12",8]
[null,null,null,"2016-08-05","12",8]
[null,null,null,"2016-08-06","12",8]
[null,null,null,"2016-08-07","12",8]
[null,null,null,"2016-08-08","12",8]
[null,null,null,"2016-08-09","12",8]
[null,null,null,"2016-08-10","12",8]
[null,null,null,"2016-08-11","12",8]
[null,null,null,"2016-08-12","12",8]
[null,null,null,"2016-08-13","12",8]
[null,null,null,"2016-08-14","12",8]
[null,null,null,"2016-08-15","12",8]
[null,null,null,"2016-08-16","12",8]
[null,null,null,"2016-08-17","12",8]
[null,null,null,"2016-08-18","12",8]
[null,null,null,"2016-08-19","12",8]
[null,null,null,"2016-08-20","12",8]
[null,null,null,"2016-08-21","12",8]
[null,null,null,"2016-08-22","12",8]
[null,null,null,"2016-08-23","12",8]
[null,null,null,"2016-08-24","12",8]
[null,null,null,"2016-08-25","12",8]
[null,null,null,"2016-08-26","12",8]
[null,null,null,"2016-08-27","12",8]
[null,null,null,"2016-08-28","12",8]
[null,null,null,"2016-08-29","12",8]
[null,null,null,"2016-08-30","12",8]
[null,null,null,"2016-08-31","12",8]
[null,null,null,"2016-09-01","01",9]
[null,null,null,"2016-09-02","01",9]
[null,null,null,"2016-09-03","01",9]
[null,null,null,"2016-09-04","01",9]
[null,null,null,"2016-09-05","01",9]
[null,null,null,"2016-09-06","01",9]
[null,null,null,"2016-09-07","01",9]
[null,null,null,"2016-09-08","01",9]
[null,null,null,"2016-09-09","01",9]
[null,null,null,"2016-09-10","01",9]
[null,null,null,"2016-09-11","01",9]
[null,null,null,"2016-09-12","01",9]
[null,null,null,"2016-09-13","01",9]
[null,null,null,"2016-09-14","01",9]
[null,null,null,"2016-09-15","01",9]
[null,null,null,"2016-09-16","01",9]
[null,null,null,"2016-09-17","01",9]
[null,null,null,"2016-09-18","01",9]
[null,null,null,"2016-09-19",{"$f":"VLOOKUP(F401,$D$3:$E$14,2,FALSE)","v":"01"},{"$f":"MONTH(D401)","v":9}]
[null,null,null,"2016-09-20","01",9]
[null,null,null,"2016-09-21","01",9]
[null,null,null,"2016-09-22","01",9]
[null,null,null,"2016-09-23","01",9]
[null,null,null,"2016-09-24","01",9]
[null,null,null,"2016-09-25","01",9]
[null,null,null,"2016-09-26","01",9]
[null,null,null,"2016-09-27","01",9]
[null,null,null,"2016-09-28","01",9]
[null,null,null,"2016-09-29","01",9]
[null,null,null,"2016-09-30","01",9]
[null,null,null,"2016-10-01","02",10]
[null,null,null,"2016-10-02","02",10]
[null,null,null,"2016-10-03","02",10]
[null,null,null,"2016-10-04","02",10]
[null,null,null,"2016-10-05","02",10]
[null,null,null,"2016-10-06","02",10]
[null,null,null,"2016-10-07","02",10]
[null,null,null,"2016-10-08","02",10]
[null,null,null,"2016-10-09","02",10]
[null,null,null,"2016-10-10","02",10]
[null,null,null,"2016-10-11","02",10]
[null,null,null,"2016-10-12","02",10]
[null,null,null,"2016-10-13","02",10]
[null,null,null,"2016-10-14","02",10]
[null,null,null,"2016-10-15","02",10]
[null,null,null,"2016-10-16","02",10]
[null,null,null,"2016-10-17","02",10]
[null,null,null,"2016-10-18","02",10]
[null,null,null,"2016-10-19","02",10]
[null,null,null,"2016-10-20","02",10]
[null,null,null,"2016-10-21","02",10]
[null,null,null,"2016-10-22","02",10]
[null,null,null,"2016-10-23","02",10]
[null,null,null,"2016-10-24","02",10]
[null,null,null,"2016-10-25","02",10]
[null,null,null,"2016-10-26","02",10]
[null,null,null,"2016-10-27","02",10]
[null,null,null,"2016-10-28","02",10]
[null,null,null,"2016-10-29","02",10]
[null,null,null,"2016-10-30","02",10]
[null,null,null,"2016-10-31","02",10]
[null,null,null,"2016-11-01","03",11]
[null,null,null,"2016-11-02","03",11]
[null,null,null,"2016-11-03","03",11]
[null,null,null,"2016-11-04","03",11]
[null,null,null,"2016-11-05","03",11]
[null,null,null,"2016-11-06","03",11]
[null,null,null,"2016-11-07","03",11]
[null,null,null,"2016-11-08","03",11]
[null,null,null,"2016-11-09","03",11]
[null,null,null,"2016-11-10","03",11]
[null,null,null,"2016-11-11","03",11]
[null,null,null,"2016-11-12","03",11]
[null,null,null,"2016-11-13","03",11]
[null,null,null,"2016-11-14","03",11]
[null,null,null,"2016-11-15","03",11]
[null,null,null,"2016-11-16","03",11]
[null,null,null,"2016-11-17","03",11]
[null,null,null,"2016-11-18","03",11]
[null,null,null,"2016-11-19","03",11]
[null,null,null,"2016-11-20","03",11]
[null,null,null,"2016-11-21","03",11]
[null,null,null,"2016-11-22",{"$f":"VLOOKUP(F465,$D$3:$E$14,2,FALSE)","v":"03"},{"$f":"MONTH(D465)","v":11}]
[null,null,null,"2016-11-23","03",11]
[null,null,null,"2016-11-24","03",11]
[null,null,null,"2016-11-25","03",11]
[null,null,null,"2016-11-26","03",11]
[null,null,null,"2016-11-27","03",11]
[null,null,null,"2016-11-28","03",11]
[null,null,null,"2016-11-29","03",11]
[null,null,null,"2016-11-30","03",11]
[null,null,null,"2016-12-01","04",12]
[null,null,null,"2016-12-02","04",12]
[null,null,null,"2016-12-03","04",12]
[null,null,null,"2016-12-04","04",12]
[null,null,null,"2016-12-05","04",12]
[null,null,null,"2016-12-06","04",12]
[null,null,null,"2016-12-07","04",12]
[null,null,null,"2016-12-08","04",12]
[null,null,null,"2016-12-09","04",12]
[null,null,null,"2016-12-10","04",12]
[null,null,null,"2016-12-11","04",12]
[null,null,null,"2016-12-12","04",12]
[null,null,null,"2016-12-13","04",12]
[null,null,null,"2016-12-14","04",12]
[null,null,null,"2016-12-15","04",12]
[null,null,null,"2016-12-16","04",12]
[null,null,null,"2016-12-17","04",12]
[null,null,null,"2016-12-18","04",12]
[null,null,null,"2016-12-19","04",12]
[null,null,null,"2016-12-20","04",12]
[null,null,null,"2016-12-21","04",12]
[null,null,null,"2016-12-22","04",12]
[null,null,null,"2016-12-23","04",12]
[null,null,null,"2016-12-24","04",12]
[null,null,null,"2016-12-25","04",12]
[null,null,null,"2016-12-26","04",12]
[null,null,null,"2016-12-27","04",12]
[null,null,null,"2016-12-28","04",12]
[null,null,null,"2016-12-29","04",12]
[null,null,null,"2016-12-30","04",12]
[null,null,null,"2016-12-31","04",12]
[null,null,null,"2017-01-01","05",1]
[null,null,null,"2017-01-02","05",1]
[null,null,null,"2017-01-03","05",1]
[null,null,null,"2017-01-04","05",1]
[null,null,null,"2017-01-05","05",1]
[null,null,null,"2017-01-06","05",1]
[null,null,null,"2017-01-07","05",1]
[null,null,null,"2017-01-08","05",1]
[null,null,null,"2017-01-09","05",1]
[null,null,null,"2017-01-10","05",1]
[null,null,null,"2017-01-11","05",1]
[null,null,null,"2017-01-12","05",1]
[null,null,null,"2017-01-13","05",1]
[null,null,null,"2017-01-14","05",1]
[null,null,null,"2017-01-15","05",1]
[null,null,null,"2017-01-16","05",1]
[null,null,null,"2017-01-17","05",1]
[null,null,null,"2017-01-18","05",1]
[null,null,null,"2017-01-19","05",1]
[null,null,null,"2017-01-20","05",1]
[null,null,null,"2017-01-21","05",1]
[null,null,null,"2017-01-22","05",1]
[null,null,null,"2017-01-23","05",1]
[null,null,null,"2017-01-24","05",1]
[null,null,null,"2017-01-25",{"$f":"VLOOKUP(F529,$D$3:$E$14,2,FALSE)","v":"05"},{"$f":"MONTH(D529)","v":1}]
[null,null,null,"2017-01-26","05",1]
[null,null,null,"2017-01-27","05",1]
[null,null,null,"2017-01-28","05",1]
[null,null,null,"2017-01-29","05",1]
[null,null,null,"2017-01-30","05",1]
[null,null,null,"2017-01-31","05",1]
[null,null,null,"2017-02-01","06",2]
[null,null,null,"2017-02-02","06",2]
[null,null,null,"2017-02-03","06",2]
[null,null,null,"2017-02-04","06",2]
[null,null,null,"2017-02-05","06",2]
[null,null,null,"2017-02-06","06",2]
[null,null,null,"2017-02-07","06",2]
[null,null,null,"2017-02-08","06",2]
[null,null,null,"2017-02-09","06",2]
[null,null,null,"2017-02-10","06",2]
[null,null,null,"2017-02-11","06",2]
[null,null,null,"2017-02-12","06",2]
[null,null,null,"2017-02-13","06",2]
[null,null,null,"2017-02-14","06",2]
[null,null,null,"2017-02-15","06",2]
[null,null,null,"2017-02-16","06",2]
[null,null,null,"2017-02-17","06",2]
[null,null,null,"2017-02-18","06",2]
[null,null,null,"2017-02-19","06",2]
[null,null,null,"2017-02-20","06",2]
[null,null,null,"2017-02-21","06",2]
[null,null,null,"2017-02-22","06",2]
[null,null,null,"2017-02-23","06",2]
[null,null,null,"2017-02-24","06",2]
[null,null,null,"2017-02-25","06",2]
[null,null,null,"2017-02-26","06",2]
[null,null,null,"2017-02-27","06",2]
[null,null,null,"2017-02-28","06",2]
[null,null,null,"2017-03-01","07",3]
[null,null,null,"2017-03-02","07",3]
[null,null,null,"2017-03-03","07",3]
[null,null,null,"2017-03-04","07",3]
[null,null,null,"2017-03-05","07",3]
[null,null,null,"2017-03-06","07",3]
[null,null,null,"2017-03-07","07",3]
[null,null,null,"2017-03-08","07",3]
[null,null,null,"2017-03-09","07",3]
[null,null,null,"2017-03-10","07",3]
[null,null,null,"2017-03-11","07",3]
[null,null,null,"2017-03-12","07",3]
[null,null,null,"2017-03-13","07",3]
[null,null,null,"2017-03-14","07",3]
[null,null,null,"2017-03-15","07",3]
[null,null,null,"2017-03-16","07",3]
[null,null,null,"2017-03-17","07",3]
[null,null,null,"2017-03-18","07",3]
[null,null,null,"2017-03-19","07",3]
[null,null,null,"2017-03-20","07",3]
[null,null,null,"2017-03-21","07",3]
[null,null,null,"2017-03-22","07",3]
[null,null,null,"2017-03-23","07",3]
[null,null,null,"2017-03-24","07",3]
[null,null,null,"2017-03-25","07",3]
[null,null,null,"2017-03-26","07",3]
[null,null,null,"2017-03-27","07",3]
[null,null,null,"2017-03-28","07",3]
[null,null,null,"2017-03-29","07",3]
[null,null,null,"2017-03-30",{"$f":"VLOOKUP(F593,$D$3:$E$14,2,FALSE)","v":"07"},{"$f":"MONTH(D593)","v":3}]
[null,null,null,"2017-03-31","07",3]
[null,null,null,"2017-04-01","08",4]
[null,null,null,"2017-04-02","08",4]
[null,null,null,"2017-04-03","08",4]
[null,null,null,"2017-04-04","08",4]
[null,null,null,"2017-04-05","08",4]
[null,null,null,"2017-04-06","08",4]
[null,null,null,"2017-04-07","08",4]
[null,null,null,"2017-04-08","08",4]
[null,null,null,"2017-04-09","08",4]
[null,null,null,"2017-04-10","08",4]
[null,null,null,"2017-04-11","08",4]
[null,null,null,"2017-04-12","08",4]
[null,null,null,"2017-04-13","08",4]
[null,null,null,"2017-04-14","08",4]
[null,null,null,"2017-04-15","08",4]
[null,null,null,"2017-04-16","08",4]
[null,null,null,"2017-04-17","08",4]
[null,null,null,"2017-04-18","08",4]
[null,null,null,"2017-04-19","08",4]
[null,null,null,"2017-04-20","08",4]
[null,null,null,"2017-04-21","08",4]
[null,null,null,"2017-04-22","08",4]
[null,null,null,"2017-04-23","08",4]
[null,null,null,"2017-04-24","08",4]
[null,null,null,"2017-04-25","08",4]
[null,null,null,"2017-04-26","08",4]
[null,null,null,"2017-04-27","08",4]
[null,null,null,"2017-04-28","08",4]
[null,null,null,"2017-04-29","08",4]
[null,null,null,"2017-04-30","08",4]
[null,null,null,"2017-05-01","09",5]
[null,null,null,"2017-05-02","09",5]
[null,null,null,"2017-05-03","09",5]
[null,null,null,"2017-05-04","09",5]
[null,null,null,"2017-05-05","09",5]
[null,null,null,"2017-05-06","09",5]
[null,null,null,"2017-05-07","09",5]
[null,null,null,"2017-05-08","09",5]
[null,null,null,"2017-05-09","09",5]
[null,null,null,"2017-05-10","09",5]
[null,null,null,"2017-05-11","09",5]
[null,null,null,"2017-05-12","09",5]
[null,null,null,"2017-05-13","09",5]
[null,null,null,"2017-05-14","09",5]
[null,null,null,"2017-05-15","09",5]
[null,null,null,"2017-05-16","09",5]
[null,null,null,"2017-05-17","09",5]
[null,null,null,"2017-05-18","09",5]
[null,null,null,"2017-05-19","09",5]
[null,null,null,"2017-05-20","09",5]
[null,null,null,"2017-05-21","09",5]
[null,null,null,"2017-05-22","09",5]
[null,null,null,"2017-05-23","09",5]
[null,null,null,"2017-05-24","09",5]
[null,null,null,"2017-05-25","09",5]
[null,null,null,"2017-05-26","09",5]
[null,null,null,"2017-05-27","09",5]
[null,null,null,"2017-05-28","09",5]
[null,null,null,"2017-05-29","09",5]
[null,null,null,"2017-05-30","09",5]
[null,null,null,"2017-05-31","09",5]
[null,null,null,"2017-06-01","10",6]
[null,null,null,"2017-06-02",{"$f":"VLOOKUP(F657,$D$3:$E$14,2,FALSE)","v":"10"},{"$f":"MONTH(D657)","v":6}]
[null,null,null,"2017-06-03","10",6]
[null,null,null,"2017-06-04","10",6]
[null,null,null,"2017-06-05","10",6]
[null,null,null,"2017-06-06","10",6]
[null,null,null,"2017-06-07","10",6]
[null,null,null,"2017-06-08","10",6]
[null,null,null,"2017-06-09","10",6]
[null,null,null,"2017-06-10","10",6]
[null,null,null,"2017-06-11","10",6]
[null,null,null,"2017-06-12","10",6]
[null,null,null,"2017-06-13","10",6]
[null,null,null,"2017-06-14","10",6]
[null,null,null,"2017-06-15","10",6]
[null,null,null,"2017-06-16","10",6]
[null,null,null,"2017-06-17","10",6]
[null,null,null,"2017-06-18","10",6]
[null,null,null,"2017-06-19","10",6]
[null,null,null,"2017-06-20","10",6]
[null,null,null,"2017-06-21","10",6]
[null,null,null,"2017-06-22","10",6]
[null,null,null,"2017-06-23","10",6]
[null,null,null,"2017-06-24","10",6]
[null,null,null,"2017-06-25","10",6]
[null,null,null,"2017-06-26","10",6]
[null,null,null,"2017-06-27","10",6]
[null,null,null,"2017-06-28","10",6]
[null,null,null,"2017-06-29","10",6]
[null,null,null,"2017-06-30","10",6]
[null,null,null,"2017-07-01","11",7]
[null,null,null,"2017-07-02","11",7]
[null,null,null,"2017-07-03","11",7]
[null,null,null,"2017-07-04","11",7]
[null,null,null,"2017-07-05","11",7]
[null,null,null,"2017-07-06","11",7]
[null,null,null,"2017-07-07","11",7]
[null,null,null,"2017-07-08","11",7]
[null,null,null,"2017-07-09","11",7]
[null,null,null,"2017-07-10","11",7]
[null,null,null,"2017-07-11","11",7]
[null,null,null,"2017-07-12","11",7]
[null,null,null,"2017-07-13","11",7]
[null,null,null,"2017-07-14","11",7]
[null,null,null,"2017-07-15","11",7]
[null,null,null,"2017-07-16","11",7]
[null,null,null,"2017-07-17","11",7]
[null,null,null,"2017-07-18","11",7]
[null,null,null,"2017-07-19","11",7]
[null,null,null,"2017-07-20","11",7]
[null,null,null,"2017-07-21","11",7]
[null,null,null,"2017-07-22","11",7]
[null,null,null,"2017-07-23","11",7]
[null,null,null,"2017-07-24","11",7]
[null,null,null,"2017-07-25","11",7]
[null,null,null,"2017-07-26","11",7]
[null,null,null,"2017-07-27","11",7]
[null,null,null,"2017-07-28","11",7]
[null,null,null,"2017-07-29","11",7]
[null,null,null,"2017-07-30","11",7]
[null,null,null,"2017-07-31","11",7]
[null,null,null,"2017-08-01","12",8]
[null,null,null,"2017-08-02","12",8]
[null,null,null,"2017-08-03","12",8]
[null,null,null,"2017-08-04","12",8]
[null,null,null,"2017-08-05",{"$f":"VLOOKUP(F721,$D$3:$E$14,2,FALSE)","v":"12"},{"$f":"MONTH(D721)","v":8}]
[null,null,null,"2017-08-06","12",8]
[null,null,null,"2017-08-07","12",8]
[null,null,null,"2017-08-08","12",8]
[null,null,null,"2017-08-09","12",8]
[null,null,null,"2017-08-10","12",8]
[null,null,null,"2017-08-11","12",8]
[null,null,null,"2017-08-12","12",8]
[null,null,null,"2017-08-13","12",8]
[null,null,null,"2017-08-14","12",8]
[null,null,null,"2017-08-15","12",8]
[null,null,null,"2017-08-16","12",8]
[null,null,null,"2017-08-17","12",8]
[null,null,null,"2017-08-18","12",8]
[null,null,null,"2017-08-19","12",8]
[null,null,null,"2017-08-20","12",8]
[null,null,null,"2017-08-21","12",8]
[null,null,null,"2017-08-22","12",8]
[null,null,null,"2017-08-23","12",8]
[null,null,null,"2017-08-24","12",8]
[null,null,null,"2017-08-25","12",8]
[null,null,null,"2017-08-26","12",8]
[null,null,null,"2017-08-27","12",8]
[null,null,null,"2017-08-28","12",8]
[null,null,null,"2017-08-29","12",8]
[null,null,null,"2017-08-30","12",8]
[null,null,null,"2017-08-31","12",8]